fUST/lending_fUST_20250907
["ID","MTS","AMOUNT","RATE_DAILY","PERIOD"]
[383928930,1757177448906,-480.0,0.00013698,2]
[383928931,1757177448921,-480.0,0.00013698,2]
[383928932,1757177448931,-1426.0,0.00013698,2]
[383928933,1757177448941,-480.0,0.00013698,2]
[383928934,1757177448950,-480.0,0.00013698,2]
[383928935,1757177448960,-825.03,0.00013698,2]
[383928936,1757177448970,-480.0,0.00013698,2]
[383928937,1757177448979,-480.0,0.00013698,2]
[383928938,1757177448989,-480.0,0.00013698,2]
[383928939,1757177448999,-480.0,0.00013698,2]
[383928940,1757177449009,-926.49,0.00013698,2]
[383928941,1757177449019,-480.0,0.00013698,2]
[383928942,1757177449033,-480.0,0.00013698,2]
[383928943,1757177449043,-480.0,0.00013698,2]
[383928944,1757177449053,-480.0,0.00013698,2]
[383928945,1757177449063,-690.23,0.00013698,2]
[383928946,1757177449074,-871.85,0.00013698,2]
[383928947,1757177449083,-957.78,0.00013698,2]
[383928948,1757177449093,-480.0,0.00013698,2]
[383928949,1757177449103,-480.0,0.00013698,2]
[383928950,1757177449112,-480.0,0.00013698,2]
[383928951,1757177449122,-480.0,0.00013698,2]
[383928952,1757177449131,-480.0,0.00013698,2]
[383928953,1757177449141,-480.0,0.00013698,2]
[383928954,1757177449151,-480.0,0.00013698,2]
[383928955,1757177449161,-480.0,0.00013698,2]
[383928956,1757177449171,-2798.46,0.00013698,2]
[383928957,1757177449181,-438.42108695,0.00013698,2]
[383928958,1757177449191,-480.0,0.00013698,2]
[383928959,1757177449200,-480.0,0.00013698,2]
[383928960,1757177449210,-480.0,0.00013698,2]
[383928961,1757177449220,-480.0,0.00013698,2]
[383928962,1757177449230,-480.0,0.00013698,2]
[383928963,1757177449241,-480.0,0.00013698,2]
[383928964,1757177449251,-1152.4,0.00013698,2]
[383928965,1757177449261,-377.20837658,0.00013698,2]
[383928966,1757177449271,-480.0,0.00013698,2]
[383928967,1757177449282,-480.0,0.00013698,2]
[383928968,1757177449291,-480.0,0.00013698,2]
[383928969,1757177449301,-480.0,0.00013698,2]
[383928970,1757177449311,-480.0,0.00013698,2]
[383928971,1757177449322,-480.0,0.00013698,2]
[383928972,1757177449331,-480.0,0.00013698,2]
[383928973,1757177449341,-480.0,0.00013698,2]
[383928974,1757177449351,-482.18458964,0.00013698,2]
[383928975,1757177449360,-482.69700786,0.00013698,2]
[383928976,1757177449370,-480.0,0.00013698,2]
[383928977,1757177449380,-480.0,0.00013698,2]
[383928978,1757177449390,-480.0,0.00013698,2]
[383928979,1757177449400,-587.4,0.00013698,2]
[383928980,1757177449409,-480.0,0.00013698,2]
[383928981,1757177449418,-480.0,0.00013698,2]
[383928982,1757177449427,-480.0,0.00013698,2]
[383928983,1757177449437,-480.0,0.00013698,2]
[383928984,1757177449447,-480.0,0.00013698,2]
[383928985,1757177449457,-15221.54,0.00013698,2]
[383928986,1757177449467,-480.0,0.00013698,2]
[383928987,1757177449477,-484.53797555,0.00013698,2]
[383928988,1757177449487,-480.0,0.00013698,2]
[383928989,1757177449497,-480.0,0.00013698,2]
[383928990,1757177449506,-480.0,0.00013698,2]
[383928991,1757177449515,-480.0,0.00013698,2]
[383928992,1757177449525,-480.0,0.00013698,2]
[383928993,1757177449535,-273.97111205,0.00013698,2]
[383928994,1757177449544,-480.0,0.00013698,2]
[383928995,1757177449554,-1043.99,0.00013698,2]
[383928996,1757177449564,-480.0,0.00013698,2]
[383928997,1757177449575,-1052.37,0.00013698,2]
[383928998,1757177449584,-480.0,0.00013698,2]
[383928999,1757177449594,-480.0,0.00013698,2]
[383929000,1757177449604,-480.0,0.00013698,2]
[383929001,1757177449614,-979.28,0.00013698,2]
[383929002,1757177449623,-480.0,0.00013698,2]
[383929003,1757177449633,-6275.02,0.00013698,2]
[383929004,1757177449644,-480.0,0.00013698,2]
[383929005,1757177449653,-813.95,0.00013698,2]
[383929006,1757177449662,-480.0,0.00013698,2]
[383929007,1757177449672,-480.0,0.00013698,2]
[383929008,1757177449681,-480.0,0.00013698,2]
[383929009,1757177449692,-3169.67,0.00013698,2]
[383929010,1757177449701,-480.0,0.00013698,2]
[383929011,1757177449711,-333.42430627,0.00013698,2]
[383929012,1757177449721,-1067.91,0.00013698,2]
[383929013,1757177449731,-480.0,0.00013698,2]
[383929014,1757177449740,-480.0,0.00013698,2]
[383929015,1757177449749,-480.0,0.00013698,2]
[383929016,1757177449759,-480.0,0.00013698,2]
[383929017,1757177449768,-480.0,0.00013698,2]
[383929018,1757177449778,-2717.82,0.00013698,2]
[383929019,1757177449787,-577.83,0.00013698,2]
[383929020,1757177449796,-480.0,0.00013698,2]
[383929021,1757177449806,-482.72351661,0.00013698,2]
[383929022,1757177449815,-480.0,0.00013698,2]
[383929023,1757177449825,-480.0,0.00013698,2]
[383929024,1757177449835,-480.0,0.00013698,2]
[383929025,1757177449844,-480.0,0.00013698,2]
[383929026,1757177449854,-499.8,0.00013698,2]
[383929027,1757177449863,-6061.4,0.00013698,2]
[383929028,1757177449872,-1065.48,0.00013698,2]
[383929029,1757177449882,-336.16163813,0.00013698,2]
[383929030,1757177449892,-480.0,0.00013698,2]
[383929031,1757177449902,-480.0,0.00013698,2]
[383929032,1757177449911,-2152.83,0.00013698,2]
[383929033,1757177449921,-480.0,0.00013698,2]
[383929034,1757177449931,-2809.42,0.00013698,2]
[383929035,1757177449940,-1078.76,0.00013698,2]
[383929036,1757177449950,-480.0,0.00013698,2]
[383929037,1757177449959,-480.0,0.00013698,2]
[383929038,1757177449969,-1202.61,0.00013698,2]
[383929039,1757177449978,-480.0,0.00013698,2]
[383929040,1757177449988,-9746.93,0.00013698,2]
[383929041,1757177449998,-480.0,0.00013698,2]
[383929042,1757177450007,-480.0,0.00013698,2]
[383929043,1757177450019,-480.0,0.00013698,2]
[383929044,1757177450031,-480.0,0.00013698,2]
[383929045,1757177450040,-1876.88,0.00013698,2]
[383929046,1757177450049,-480.0,0.00013698,2]
[383929047,1757177450059,-480.0,0.00013698,2]
[383929048,1757177450069,-962.28,0.00013698,2]
[383929049,1757177450078,-480.0,0.00013698,2]
[383929050,1757177450088,-480.0,0.00013698,2]
[383929051,1757177450098,-806.91,0.00013698,2]
[383929052,1757177450110,-480.0,0.00013698,2]
[383929053,1757177450119,-535.86,0.00013698,2]
[383929054,1757177450129,-480.0,0.00013698,2]
[383929055,1757177450139,-480.0,0.00013698,2]
[383929056,1757177450149,-480.0,0.00013698,2]
[383929057,1757177450159,-855.08,0.00013698,2]
[383929058,1757177450168,-520.61,0.00013698,2]
[383929059,1757177450177,-3856.72,0.00013698,2]
[383929060,1757177450187,-480.0,0.00013698,2]
[383929061,1757177450197,-636.23,0.00013698,2]
[383929062,1757177450209,-981.94,0.00013698,2]
[383929063,1757177450219,-480.0,0.00013698,2]
[383929064,1757177450228,-2356.45,0.00013698,2]
[383929065,1757177450237,-1364.35,0.00013698,2]
[383929066,1757177450248,-480.0,0.00013698,2]
[383929067,1757177450257,-545.57,0.00013698,2]
[383929068,1757177450267,-480.0,0.00013698,2]
[383929069,1757177450277,-480.0,0.00013698,2]
[383929070,1757177450287,-3006.29,0.00013698,2]
[383929071,1757177450296,-614.49,0.00013698,2]
[383929072,1757177450306,-480.0,0.00013698,2]
[383929073,1757177450315,-480.0,0.00013698,2]
[383929074,1757177450327,-480.0,0.00013698,2]
[383929075,1757177450337,-378.73437034,0.00013698,2]
[383929076,1757177450346,-480.0,0.00013698,2]
[383929077,1757177450355,-725.56,0.00013698,2]
[383929078,1757177450365,-480.0,0.00013698,2]
[383929079,1757177450375,-480.0,0.00013698,2]
[383929080,1757177450384,-480.0,0.00013698,2]
[383929081,1757177450394,-480.0,0.00013698,2]
[383929082,1757177450405,-663.97,0.00013698,2]
[383929083,1757177450414,-666.48,0.00013698,2]
[383929084,1757177450424,-480.0,0.00013698,2]
[383929085,1757177450434,-480.0,0.00013698,2]
[383929086,1757177450443,-480.0,0.00013698,2]
[383929087,1757177450453,-4873.69,0.00013698,2]
[383929088,1757177450463,-480.0,0.00013698,2]
[383929089,1757177450472,-372.73,0.00013698,2]
[383929090,1757177450482,-1785.88,0.00013698,2]
[383929091,1757177450491,-485.48590179,0.00013698,2]
[383929092,1757177450500,-2641.73,0.00013698,2]
[383929093,1757177450510,-811.76,0.00013698,2]
[383929094,1757177450520,-197.60111011,0.00013698,2]
[383929095,1757177450530,-1179.98,0.00013698,2]
[383929096,1757177450540,-480.0,0.00013698,2]
[383929097,1757177450550,-480.0,0.00013698,2]
[383929098,1757177450560,-480.0,0.00013698,2]
[383929099,1757177450571,-480.0,0.00013698,2]
[383929100,1757177450581,-264.7344798,0.00013698,2]
[383929101,1757177450591,-151.0,0.00013698,2]
[383929102,1757177450600,-151.0,0.00013698,2]
[383929103,1757177450609,-151.0,0.00013698,2]
[383929104,1757177450619,-497.86901092,0.00013698,2]
[383929105,1757177450629,-480.0,0.00013698,2]
[383929106,1757177450639,-480.0,0.00013698,2]
[383929107,1757177450648,-2177.29,0.00013698,2]
[383929108,1757177450658,-1653.43,0.00013698,2]
[383929109,1757177450668,-480.0,0.00013698,2]
[383929110,1757177450677,-1040.95,0.00013698,2]
[383929111,1757177450686,-1800.91,0.00013698,2]
[383929112,1757177450696,-482.95878034,0.00013698,2]
[383929113,1757177450704,-767.71,0.00013698,2]
[383929114,1757177450714,-480.0,0.00013698,2]
[383929115,1757177450724,-480.0,0.00013698,2]
[383929116,1757177450734,-480.0,0.00013698,2]
[383929117,1757177450743,-480.0,0.00013698,2]
[383929118,1757177450753,-624.64,0.00013698,2]
[383929119,1757177450763,-845.79,0.00013698,2]
[383929120,1757177450773,-492.36,0.00013698,2]
[383929121,1757177450782,-480.0,0.00013698,2]
[383929122,1757177450792,-480.0,0.00013698,2]
[383929123,1757177450801,-712.82,0.00013698,2]
[383929124,1757177450812,-480.0,0.00013698,2]
[383929125,1757177450823,-1852.25,0.00013698,2]
[383929126,1757177450832,-480.0,0.00013698,2]
[383929127,1757177450841,-519.9955836,0.00013698,2]
[383929128,1757177450852,-480.0,0.00013698,2]
[383929129,1757177450862,-947.78,0.00013698,2]
[383929130,1757177450871,-1118.06,0.00013698,2]
[383929131,1757177450881,-480.0,0.00013698,2]
[383929132,1757177450892,-749.42,0.00013698,2]
[383929133,1757177450902,-536.7,0.00013698,2]
[383929134,1757177450911,-889.4,0.00013698,2]
[383929135,1757177450920,-480.0,0.00013698,2]
[383929136,1757177450930,-480.0,0.00013698,2]
[383929137,1757177450940,-480.0,0.00013698,2]
[383929138,1757177450949,-783.052443,0.00013699,2]
[383929139,1757177450959,-859.964206,0.00013699,2]
[383929140,1757177450969,-406.49,0.00013799,2]
[383929141,1757177450978,-27471.72734179,0.000138,2]
[383929142,1757177450987,-151.0,0.000138,2]
[383929143,1757177450997,-600.0,0.00013866,2]
[383929144,1757177451006,-165.21169703,0.00013872,2]
[383929145,1757177451015,-600.0,0.0001389,2]
[383929146,1757177451027,-188.2775615,0.000139,2]
[383929147,1757177451037,-188.2346916,0.000139,2]
[383929148,1757177451047,-188.2346916,0.000139,2]
[383929149,1757177451057,-188.2346916,0.000139,2]
[383929150,1757177451066,-494.2346916,0.000139,2]
[383929151,1757177451078,-188.2346916,0.000139,2]
[383929152,1757177451088,-161.5667533,0.000139,2]
[383929153,1757177451098,-188.2346916,0.000139,2]
[383929154,1757177451109,-161.3668108,0.000139,2]
[383929155,1757177451119,-161.5667533,0.000139,2]
[383929156,1757177451129,-161.5667533,0.000139,2]
[383929157,1757177451138,-188.2346916,0.000139,2]
[383929158,1757177451148,-161.5667533,0.000139,2]
[383929159,1757177451157,-188.2346916,0.000139,2]
[383929160,1757177451167,-247.2877641,0.000139,2]
[383929161,1757177451177,-188.2346916,0.000139,2]
[383929162,1757177451187,-188.2346916,0.000139,2]
[383929163,1757177451197,-188.2346916,0.000139,2]
[383929164,1757177451207,-188.2346916,0.000139,2]
[383929165,1757177451216,-376.5122531,0.000139,2]
[383929166,1757177451225,-153.0,0.000139,2]
[383929167,1757177451235,-188.2775615,0.000139,2]
[383929168,1757177451244,-323.1335066,0.000139,2]
[383929169,1757177451253,-188.2775615,0.000139,2]
[383929170,1757177451262,-153.0,0.000139,2]
[383929171,1757177451271,-188.2775615,0.000139,2]
[383929172,1757177451280,-161.5667533,0.000139,2]
[383929173,1757177451289,-308.8242449,0.000139,2]
[383929174,1757177451298,-309.3166848,0.000139,2]
[383929175,1757177451307,-320.5332677,0.000139,2]
[383929176,1757177451316,-161.5667533,0.000139,2]
[383929177,1757177451326,-188.2775615,0.000139,2]
[383929178,1757177451335,-153.0,0.000139,2]
[383929179,1757177451345,-583.5999924,0.000139,2]
[383929180,1757177451355,-583.5999924,0.000139,2]
[383929181,1757177451364,-232.1188299,0.000139,2]
[383929182,1757177451373,-153.0,0.000139,2]
[383929183,1757177451382,-161.5667533,0.000139,2]
[383929184,1757177451391,-583.5999924,0.000139,2]
[383929185,1757177451400,-581.3631953,0.000139,2]
[383929186,1757177451409,-572.09406656,0.0001392,2]
[383929187,1757177451419,-183.84445179,0.00013925,2]
[383929188,1757177451428,-280.0,0.00013925,2]
[383929189,1757177451437,-814.0,0.00013925,2]
[383929190,1757177451447,-161.58799711,0.00013925,2]
[383929191,1757177451456,-157.0,0.00013925,2]
[383929192,1757177451466,-246.48796541,0.00013925,2]
[383929193,1757177451475,-300.0,0.00013971,2]
[383929194,1757177451485,-300.0,0.00013971,2]
[383929195,1757177451494,-300.0,0.00013971,2]
[383929196,1757177451503,-300.0,0.00013971,2]
[383929197,1757177451513,-300.0,0.00013971,2]
[383929198,1757177451522,-300.0,0.00013971,2]
[383929199,1757177451532,-300.0,0.00013971,2]
[383929200,1757177451542,-300.0,0.00013971,2]
[383929201,1757177451551,-300.0,0.00013971,2]
[383929202,1757177451561,-300.0,0.00013971,2]
[383929203,1757177451571,-300.0,0.00013971,2]
[383929204,1757177451580,-300.0,0.00013971,2]
[383929205,1757177451590,-300.0,0.00013971,2]
[383929206,1757177451600,-300.0,0.00013971,2]
[383929207,1757177451610,-300.0,0.00013971,2]
[383929208,1757177451619,-600.0,0.00013971,2]
[383929209,1757177451629,-200.0,0.00013971,2]
[383929210,1757177451639,-157.0,0.00013972,2]
[383929211,1757177451648,-500.0,0.00013972,2]
[383929212,1757177451658,-501.51,0.00013972,2]
[383929213,1757177451668,-480.0,0.00013972,2]
[383929214,1757177451677,-480.0,0.00013972,2]
[383929215,1757177451687,-982.86,0.00013972,2]
[383929216,1757177451696,-480.0,0.00013972,2]
[383929217,1757177451706,-480.0,0.00013972,2]
[383929218,1757177451715,-480.0,0.00013972,2]
[383929219,1757177451725,-480.0,0.00013972,2]
[383929220,1757177451734,-480.0,0.00013972,2]
[383929221,1757177451744,-480.0,0.00013972,2]
[383929222,1757177451753,-480.0,0.00013972,2]
[383929223,1757177451763,-480.0,0.00013972,2]
[383929224,1757177451773,-480.0,0.00013972,2]
[383929225,1757177451782,-653.35,0.00013972,2]
[383929226,1757177451791,-553.9252342,0.00013972,2]
[383929227,1757177451800,-480.0,0.00013972,2]
[383929228,1757177451810,-480.0,0.00013972,2]
[383929229,1757177451820,-480.0,0.00013972,2]
[383929230,1757177451830,-1088.68,0.00013972,2]
[383929231,1757177451839,-1031.24,0.00013972,2]
[383929232,1757177451848,-160.65272493,0.00013972,2]
[383929233,1757177451858,-480.0,0.00013972,2]
[383929234,1757177451867,-480.0,0.00013972,2]
[383929235,1757177451877,-480.0,0.00013972,2]
[383929236,1757177451888,-480.0,0.00013972,2]
[383929237,1757177451897,-498.97,0.00013972,2]
[383929238,1757177451907,-569.58,0.00013972,2]
[383929239,1757177451918,-503.22713535,0.00013972,2]
[383929240,1757177451927,-179.1,0.00013972,2]
[383929241,1757177451937,-480.0,0.00013972,2]
[383929242,1757177451946,-480.0,0.00013972,2]
[383929243,1757177451955,-480.0,0.00013972,2]
[383929244,1757177451965,-480.0,0.00013972,2]
[383929245,1757177451975,-480.0,0.00013972,2]
[383929246,1757177451984,-480.0,0.00013972,2]
[383929247,1757177451994,-480.0,0.00013972,2]
[383929248,1757177452003,-875.75,0.00013972,2]
[383929249,1757177452013,-578.34,0.00013972,2]
[383929250,1757177452024,-480.0,0.00013972,2]
[383929251,1757177452037,-616.1,0.00013972,2]
[383929252,1757177452047,-480.0,0.00013972,2]
[383929253,1757177452056,-527.18,0.00013972,2]
[383929254,1757177452067,-159.03,0.00013972,2]
[383929255,1757177452078,-507.34,0.00013972,2]
[383929256,1757177452088,-480.0,0.00013972,2]
[383929257,1757177452099,-480.0,0.00013972,2]
[383929258,1757177452109,-480.0,0.00013972,2]
[383929259,1757177452119,-480.0,0.00013972,2]
[383929260,1757177452129,-480.0,0.00013972,2]
[383929261,1757177452139,-1165.68,0.00013972,2]
[383929262,1757177452148,-1125.83,0.00013972,2]
[383929263,1757177452158,-482.39,0.00013972,2]
[383929264,1757177452168,-480.0,0.00013972,2]
[383929265,1757177452177,-1067.59,0.00013972,2]
[383929266,1757177452187,-973.09,0.00013972,2]
[383929267,1757177452196,-480.0,0.00013972,2]
[383929268,1757177452206,-480.0,0.00013972,2]
[383929269,1757177452215,-964.99,0.00013972,2]
[383929270,1757177452225,-540.20266652,0.00013972,2]
[383929271,1757177452234,-480.0,0.00013972,2]
[383929272,1757177452244,-480.0,0.00013972,2]
[383929273,1757177452253,-307.80412456,0.00013972,2]
[383929274,1757177452262,-480.0,0.00013972,2]
[383929275,1757177452272,-873.8,0.00013972,2]
[383929276,1757177452282,-480.0,0.00013972,2]
[383929277,1757177452292,-480.0,0.00013972,2]
[383929278,1757177452301,-150.53867941,0.00013972,2]
[383929279,1757177452311,-480.0,0.00013972,2]
[383929280,1757177452321,-480.0,0.00013972,2]
[383929281,1757177452331,-480.0,0.00013972,2]
[383929282,1757177452340,-480.0,0.00013972,2]
[383929283,1757177452349,-560.72,0.00013972,2]
[383929284,1757177452359,-169.19232002,0.00013972,2]
[383929285,1757177452368,-548.98824823,0.00013972,2]
[383929286,1757177452378,-480.0,0.00013972,2]
[383929287,1757177452387,-1426.0,0.00013972,2]
[383929288,1757177452405,-480.0,0.00013972,2]
[383929289,1757177452417,-480.0,0.00013972,2]
[383929290,1757177452427,-825.03,0.00013972,2]
[383929291,1757177452437,-480.0,0.00013972,2]
[383929292,1757177452447,-480.0,0.00013972,2]
[383929293,1757177452457,-256.94695883,0.00013972,2]
[383929294,1757177452466,-926.49,0.00013972,2]
[383929295,1757177452477,-480.0,0.00013972,2]
[383929296,1757177452487,-480.0,0.00013972,2]
[383929297,1757177452496,-480.0,0.00013972,2]
[383929298,1757177452705,-509.31877706,0.00013972,2]
[383929299,1757177452716,-690.23,0.00013972,2]
[383929300,1757177452726,-871.85,0.00013972,2]
[383929301,1757177452736,-957.78,0.00013972,2]
[383929302,1757177452746,-480.0,0.00013972,2]
[383929303,1757177452755,-572.28,0.00013972,2]
[383929304,1757177452764,-480.0,0.00013972,2]
[383929305,1757177452774,-320.82843327,0.00013972,2]
[383929306,1757177452783,-480.0,0.00013972,2]
[383929307,1757177452793,-484.03203845,0.00013972,2]
[383929308,1757177452802,-480.0,0.00013972,2]
[383929309,1757177452811,-2798.46,0.00013972,2]
[383929310,1757177452821,-480.0,0.00013972,2]
[383929311,1757177452831,-480.0,0.00013972,2]
[383929312,1757177452841,-480.0,0.00013972,2]
[383929313,1757177452850,-483.60289907,0.00013972,2]
[383929314,1757177452859,-480.0,0.00013972,2]
[383929315,1757177452869,-480.0,0.00013972,2]
[383929316,1757177452878,-1152.4,0.00013972,2]
[383929317,1757177452887,-480.0,0.00013972,2]
[383929318,1757177452900,-480.0,0.00013972,2]
[383929319,1757177452910,-480.0,0.00013972,2]
[383929320,1757177452922,-480.0,0.00013972,2]
[383929321,1757177452932,-480.0,0.00013972,2]
[383929322,1757177452941,-480.0,0.00013972,2]
[383929323,1757177452952,-480.0,0.00013972,2]
[383929324,1757177452962,-480.0,0.00013972,2]
[383929325,1757177452971,-480.0,0.00013972,2]
[383929326,1757177452981,-480.0,0.00013972,2]
[383929327,1757177452990,-480.0,0.00013972,2]
[383929328,1757177452999,-587.4,0.00013972,2]
[383929329,1757177453008,-234.49246612,0.00013972,2]
[383929330,1757177453019,-480.0,0.00013972,2]
[383929331,1757177453032,-480.0,0.00013972,2]
[383929332,1757177453042,-480.0,0.00013972,2]
[383929333,1757177453053,-15221.54,0.00013972,2]
[383929334,1757177453063,-480.0,0.00013972,2]
[383929335,1757177453074,-480.0,0.00013972,2]
[383929336,1757177453083,-480.0,0.00013972,2]
[383929337,1757177453093,-480.0,0.00013972,2]
[383929338,1757177453103,-480.0,0.00013972,2]
[383929339,1757177453112,-480.0,0.00013972,2]
[383929340,1757177453123,-480.0,0.00013972,2]
[383929341,1757177453133,-1043.99,0.00013972,2]
[383929342,1757177453142,-480.0,0.00013972,2]
[383929343,1757177453152,-1052.37,0.00013972,2]
[383929344,1757177453163,-480.0,0.00013972,2]
[383929345,1757177453172,-480.0,0.00013972,2]
[383929346,1757177453182,-480.0,0.00013972,2]
[383929347,1757177453191,-979.28,0.00013972,2]
[383929348,1757177453200,-480.0,0.00013972,2]
[383929349,1757177453211,-6275.02,0.00013972,2]
[383929350,1757177453220,-480.0,0.00013972,2]
[383929351,1757177453230,-813.95,0.00013972,2]
[383929352,1757177453239,-480.0,0.00013972,2]
[383929353,1757177453249,-484.63510826,0.00013972,2]
[383929354,1757177453259,-3169.67,0.00013972,2]
[383929355,1757177453268,-480.0,0.00013972,2]
[383929356,1757177453278,-480.0,0.00013972,2]
[383929357,1757177453288,-1067.91,0.00013972,2]
[383929358,1757177453298,-530.67386183,0.00013972,2]
[383929359,1757177453311,-480.0,0.00013972,2]
[383929360,1757177453321,-505.73117804,0.00013972,2]
[383929361,1757177453330,-480.0,0.00013972,2]
[383929362,1757177453339,-2717.82,0.00013972,2]
[383929363,1757177453349,-577.83,0.00013972,2]
[383929364,1757177453358,-480.0,0.00013972,2]
[383929365,1757177453368,-480.0,0.00013972,2]
[383929366,1757177453378,-489.50103651,0.00013972,2]
[383929367,1757177453387,-480.0,0.00013972,2]
[383929368,1757177453397,-480.0,0.00013972,2]
[383929369,1757177453407,-499.8,0.00013972,2]
[383929370,1757177453421,-6061.4,0.00013972,2]
[383929371,1757177453431,-1065.48,0.00013972,2]
[383929372,1757177453441,-480.0,0.00013972,2]
[383929373,1757177453451,-480.0,0.00013972,2]
[383929374,1757177453461,-2152.83,0.00013972,2]
[383929375,1757177453470,-481.9804029,0.00013972,2]
[383929376,1757177453484,-2809.42,0.00013972,2]
[383929377,1757177453499,-1078.76,0.00013972,2]
[383929378,1757177453509,-480.0,0.00013972,2]
[383929379,1757177453519,-480.0,0.00013972,2]
[383929380,1757177453529,-1202.61,0.00013972,2]
[383929381,1757177453539,-480.0,0.00013972,2]
[383929382,1757177453549,-9746.93,0.00013972,2]
[383929383,1757177453559,-480.0,0.00013972,2]
[383929384,1757177453571,-480.0,0.00013972,2]
[383929385,1757177453581,-480.0,0.00013972,2]
[383929386,1757177453591,-480.0,0.00013972,2]
[383929387,1757177453601,-1876.88,0.00013972,2]
[383929388,1757177453611,-480.0,0.00013972,2]
[383929389,1757177453621,-480.0,0.00013972,2]
[383929390,1757177453631,-962.28,0.00013972,2]
[383929391,1757177453642,-480.0,0.00013972,2]
[383929392,1757177453652,-480.0,0.00013972,2]
[383929393,1757177453662,-806.91,0.00013972,2]
[383929394,1757177453672,-480.0,0.00013972,2]
[383929395,1757177453683,-535.86,0.00013972,2]
[383929396,1757177453695,-480.0,0.00013972,2]
[383929397,1757177453705,-480.0,0.00013972,2]
[383929398,1757177453714,-480.0,0.00013972,2]
[383929399,1757177453724,-855.08,0.00013972,2]
[383929400,1757177453734,-520.61,0.00013972,2]
[383929401,1757177453744,-3856.72,0.00013972,2]
[383929402,1757177453754,-480.0,0.00013972,2]
[383929403,1757177453764,-636.23,0.00013972,2]
[383929404,1757177453774,-981.94,0.00013972,2]
[383929405,1757177453783,-480.0,0.00013972,2]
[383929406,1757177453793,-2356.45,0.00013972,2]
[383929407,1757177453803,-1364.35,0.00013972,2]
[383929408,1757177453814,-480.0,0.00013972,2]
[383929409,1757177453824,-545.57,0.00013972,2]
[383929410,1757177453834,-480.0,0.00013972,2]
[383929411,1757177453843,-480.0,0.00013972,2]
[383929412,1757177453853,-3006.29,0.00013972,2]
[383929413,1757177453863,-614.49,0.00013972,2]
[383929414,1757177453872,-480.0,0.00013972,2]
[383929415,1757177453882,-480.0,0.00013972,2]
[383929416,1757177453892,-480.0,0.00013972,2]
[383929417,1757177453902,-536.80250306,0.00013972,2]
[383929418,1757177453913,-725.56,0.00013972,2]
[383929419,1757177453924,-480.0,0.00013972,2]
[383929420,1757177453934,-200.57742305,0.00013972,2]
[383929421,1757177453943,-480.0,0.00013972,2]
[383929422,1757177453953,-480.0,0.00013972,2]
[383929423,1757177453963,-663.97,0.00013972,2]
[383929424,1757177453973,-666.48,0.00013972,2]
[383929425,1757177453983,-480.0,0.00013972,2]
[383929426,1757177453992,-485.31907194,0.00013972,2]
[383929427,1757177454002,-480.0,0.00013972,2]
[383929428,1757177454012,-4873.69,0.00013972,2]
[383929429,1757177454023,-480.0,0.00013972,2]